bitfinex/quotes_BTCUSD_20230901
["timestamp","ask_amount","ask_price","bid_price","bid_amount"]
[1693530235230,0.14123252,26050.0,26049.0,2.33625778]
[1693530235432,0.14123252,26050.0,26049.0,2.33577778]
[1693530235882,0.14123252,26050.0,26049.0,2.33571778]
[1693530236078,0.14123252,26050.0,26049.0,2.33535778]
[1693530236281,0.14123252,26050.0,26049.0,2.33577778]
[1693530236506,0.14123252,26050.0,26049.0,2.33559778]
[1693530236708,0.14123252,26050.0,26049.0,2.34231778]
[1693530237456,0.14123252,26050.0,26049.0,2.34135778]
[1693530237655,0.14123252,26050.0,26049.0,2.34117778]
[1693530237881,0.14123252,26050.0,26049.0,2.34111778]
[1693530238079,0.14123252,26050.0,26049.0,2.34387778]
[1693530238279,0.14123252,26050.0,26049.0,2.34381778]
[1693530238457,0.14123252,26050.0,26049.0,2.34537778]
[1693530238656,0.14123252,26050.0,26049.0,2.33979778]
[1693530238858,0.14123252,26050.0,26049.0,2.33961778]
[1693530239059,0.14123252,26050.0,26049.0,2.34075778]
[1693530239286,0.14123252,26050.0,26049.0,2.34465778]
[1693530239560,0.14123252,26050.0,26049.0,2.34507778]
[1693530239808,0.14123252,26050.0,26049.0,2.34501778]
[1693530240032,0.14123252,26050.0,26049.0,2.34513778]
[1693530240228,0.14123252,26050.0,26049.0,2.34507778]
[1693530240468,0.14123252,26050.0,26049.0,2.34045778]
[1693530240622,0.14123252,26050.0,26049.0,2.34069778]
[1693530240835,0.14123252,26050.0,26049.0,2.34213778]
[1693530241038,0.14123252,26050.0,26049.0,2.34117778]
[1693530241370,0.14123252,26050.0,26049.0,2.34099778]
[1693530241573,0.14123252,26050.0,26049.0,2.34321778]
[1693530242001,0.14123252,26050.0,26049.0,2.34315778]
[1693530242213,0.14123252,26050.0,26049.0,2.34309778]
[1693530242422,0.14123252,26050.0,26049.0,2.34345778]
[1693530242597,0.14123252,26050.0,26049.0,2.34267778]
[1693530242735,0.14123252,26050.0,26049.0,2.34273778]
[1693530242940,0.14123252,26050.0,26049.0,2.34261778]
[1693530243199,0.14123252,26050.0,26049.0,2.34273778]
[1693530243602,0.14123252,26050.0,26049.0,2.34261778]
[1693530243801,0.14123252,26050.0,26049.0,2.34273778]
[1693530244005,0.14123252,26050.0,26049.0,2.34267778]
[1693530244233,0.14123252,26050.0,26049.0,2.34255778]
[1693530244434,0.14123252,26050.0,26049.0,2.34417778]
[1693530244641,0.14123252,26050.0,26049.0,2.35305778]
[1693530244856,0.09512922,26050.0,26049.0,2.36541778]
[1693530245061,0.003,26050.0,26049.0,2.63343778]
[1693530245246,0.003,26050.0,26049.0,2.63595778]
[1693530245539,0.003,26050.0,26049.0,2.63571778]
[1693530245743,0.003,26050.0,26049.0,2.63715778]
[1693530245966,0.003,26050.0,26049.0,2.63367778]
[1693530246165,0.003,26050.0,26049.0,2.63883778]
[1693530246414,0.003,26050.0,26049.0,2.69055778]
[1693530246616,0.003,26050.0,26049.0,2.81919778]
[1693530246828,0.003,26050.0,26049.0,3.19011778]
[1693530247040,0.13823252,26053.0,26052.0,0.12]
[1693530247041,0.23036174,26053.0,26052.0,0.12]
[1693530247283,0.09212922,26054.0,26053.0,0.12]
[1693530247494,0.09212922,26055.0,26054.0,0.12]
[1693530247720,0.09212922,26055.0,26054.0,2.65246778]
[1693530247928,0.09212922,26055.0,26054.0,2.97418778]
[1693530248137,0.13823252,26056.0,26055.0,0.12]
[1693530248340,0.23027753,26056.0,26055.0,2.47060178]
[1693530248567,0.23027753,26056.0,26055.0,2.75452178]
[1693530248774,0.23027753,26056.0,26055.0,2.75380178]
[1693530248989,0.13823252,26056.0,26055.0,2.46148178]
[1693530249205,0.13823252,26056.0,26055.0,1.845315]
[1693530249411,0.18412245,26056.0,26055.0,1.965315]
[1693530249992,0.32213722,26056.0,26055.0,1.965315]
[1693530250778,0.18812245,26056.0,26055.0,1.997315]
[1693530251358,0.41818237,26056.0,26055.0,1.997315]
[1693530251633,0.41818237,26056.0,26055.0,1.957315]
[1693530251848,0.41818237,26056.0,26055.0,1.30161]
[1693530251849,0.91783741,26056.0,26055.0,1.30161]
[1693530252051,0.91783741,26056.0,26055.0,0.032]
[1693530252052,1.07933804,26056.0,26055.0,0.032]
[1693530253433,0.81841389,26056.0,26053.0,0.575738]
[1693530253634,0.41400745,26054.0,26053.0,0.575738]
[1693530254845,0.41500745,26054.0,26053.0,0.583738]
[1693530255229,0.47373503,26054.0,26053.0,0.583738]
[1693530255533,0.71183767,26054.0,26053.0,0.583738]
[1693530263637,0.48183353,26054.0,26053.0,0.583738]
[1693530266087,0.48183353,26054.0,26053.0,0.008]
[1693530266088,1.05756053,26054.0,26053.0,0.008]
[1693530267282,1.05836321,26054.0,26053.0,0.008]
[1693530271818,1.33455218,26054.0,26053.0,0.008]
[1693530280716,0.75882518,26054.0,26053.0,0.008]
[1693530280918,0.48263621,26054.0,26053.0,0.008]
[1693530282261,1.05836321,26054.0,26053.0,0.008]
[1693530286012,1.45666512,26054.0,26053.0,0.008]
[1693530288000,0.60474915,26054.0,26053.0,0.1262]
[1693530292771,0.60359248,26054.0,26053.0,0.1262]
[1693530292999,0.87983704,26054.0,26053.0,0.1262]
[1693530296131,1.21372637,26054.0,26053.0,0.1262]
[1693530296494,1.21394751,26054.0,26053.0,0.1262]
[1693530296921,0.93750487,26054.0,26053.0,0.1262]
[1693530297791,0.93750487,26054.0,26053.0,0.008]
[1693530300267,2.08895887,26054.0,26053.0,0.008]
[1693530301107,2.39995684,26054.0,26053.0,0.008]
[1693530305061,2.77286726,26054.0,26053.0,0.008]
[1693530305234,3.25049162,26054.0,26053.0,0.008]
[1693530305461,2.93949365,26054.0,26053.0,0.008]
[1693530305801,3.25059037,26054.0,26053.0,0.008]
[1693530307054,0.06,26053.0,26050.0,0.0493627]
[1693530307266,0.27651854,26051.0,26050.0,0.0493627]
[1693530307467,1.33086486,26051.0,26050.0,0.0493627]
[1693530307731,1.90665786,26051.0,26049.0,0.1182]
[1693530307926,1.90665786,26051.0,26047.0,0.57587]
[1693530307927,0.24240001,26050.0,26047.0,0.57587]
[1693530308137,0.41475258,26048.0,26047.0,0.57587]
[1693530310057,0.47281811,26048.0,26047.0,0.57587]
[1693530310459,0.47281811,26048.0,26047.0,0.58687]
[1693530310674,0.2304181,26048.0,26047.0,0.57587]
[1693530311058,0.2344181,26048.0,26047.0,0.58687]
[1693530311416,0.47681811,26048.0,26047.0,0.58687]
[1693530311631,0.2344181,26048.0,26047.0,0.58687]
[1693530311924,0.2304181,26048.0,26047.0,0.57587]
[1693530312121,0.2334181,26048.0,26047.0,0.58687]
[1693530312603,0.47581811,26048.0,26047.0,0.58687]
[1693530312823,0.47571627,26048.0,26047.0,0.58687]
[1693530315441,0.69606852,26048.0,26047.0,0.011]
[1693530319899,0.88021205,26048.0,26047.0,0.011]
[1693530320676,0.69606852,26048.0,26047.0,0.011]
[1693530321025,0.88020353,26048.0,26047.0,0.011]
[1693530321166,0.69606852,26048.0,26047.0,0.011]
[1693530321777,0.88019771,26048.0,26047.0,0.011]
[1693530322376,0.69606852,26048.0,26047.0,0.011]
[1693530323732,0.88018871,26048.0,26047.0,0.011]
[1693530324726,0.69606852,26048.0,26047.0,0.011]
[1693530324928,0.88018237,26048.0,26047.0,0.011]
[1693530329601,0.69606852,26048.0,26047.0,0.011]
[1693530331959,1.27192752,26048.0,26047.0,0.011]
[1693530334024,2.71112397,26048.0,26047.0,0.011]
[1693530334401,3.09821075,26048.0,26047.0,0.011]
[1693530335028,2.86789449,26048.0,26047.0,0.011]
[1693530335433,2.86489449,26048.0,26045.0,0.04914155]
[1693530335637,0.18413582,26046.0,26045.0,0.04914155]
[1693530335843,1.33594382,26046.0,26045.0,0.04914155]
[1693530336045,1.77686341,26046.0,26044.0,0.1182]
[1693530336256,0.13810235,26045.0,26044.0,0.1182]
[1693530337257,0.23017083,26045.0,26044.0,0.1182]
[1693530338495,0.23317083,26045.0,26044.0,0.1282]
[1693530339056,0.14110235,26045.0,26044.0,0.1282]
[1693530340008,0.32523817,26045.0,26044.0,0.1282]
[1693530340452,0.32523817,26045.0,26044.0,0.01]
[1693530340889,2.434958,26045.0,26044.0,0.01]
[1693530341091,2.48099196,26045.0,26044.0,0.01]
[1693530342154,2.47799196,26045.0,26043.0,0.1384]
[1693530342359,0.32225625,26044.0,26043.0,0.1384]
[1693530342538,1.47415225,26044.0,26043.0,0.1384]
[1693530342693,1.33604243,26044.0,26043.0,0.1384]
[1693530343775,1.60737962,26044.0,26043.0,0.1384]
[1693530344596,2.36885747,26044.0,26043.0,0.0202]
[1693530344801,2.37085747,26044.0,26043.0,0.0292]
[1693530345415,2.08959593,26044.0,26043.0,0.0292]
[1693530345862,1.9054495,26044.0,26043.0,0.0292]
[1693530347160,2.08959675,26044.0,26043.0,0.0292]
[1693530348895,1.85942697,26044.0,26043.0,0.0292]
[1693530349735,2.08959675,26044.0,26043.0,0.0292]
[1693530349958,1.9054495,26044.0,26043.0,0.0292]
[1693530351092,2.08954756,26044.0,26043.0,0.0292]
[1693530351296,1.9054495,26044.0,26043.0,0.0292]
[1693530351916,2.08953945,26044.0,26043.0,0.0292]
[1693530353994,1.28342167,26044.0,26043.0,0.0292]
[1693530354170,1.28342167,26044.0,26043.0,0.1474]
[1693530354370,0.18608995,26044.0,26043.0,0.1474]
[1693530354591,0.14007783,26044.0,26043.0,1.94389]
[1693530354953,0.14007783,26044.0,26043.0,1.87531]
[1693530355365,0.14007783,26044.0,26043.0,1.95943]
[1693530355534,0.14007783,26044.0,26043.0,1.95781]
[1693530355744,0.14007783,26044.0,26043.0,1.95343]
[1693530355946,0.14007783,26044.0,26043.0,1.87531]
[1693530356707,0.23213761,26044.0,26043.0,1.98337]
[1693530356964,0.23213761,26044.0,26043.0,1.98097]
[1693530356965,0.002,26044.0,26043.0,1.98097]
[1693530357105,0.002,26044.0,26043.0,1.98085]
[1693530357324,0.002,26044.0,26043.0,1.98301]
[1693530357524,0.002,26044.0,26043.0,1.98451]
[1693530357726,0.002,26044.0,26043.0,1.98541]
[1693530357943,0.002,26044.0,26043.0,1.98841]
[1693530358143,0.002,26044.0,26043.0,1.98793]
[1693530358554,0.002,26044.0,26043.0,1.98859]
[1693530358754,0.002,26044.0,26043.0,2.14231]
[1693530358955,0.002,26044.0,26043.0,2.00425]
[1693530359161,0.002,26044.0,26043.0,1.99993]
[1693530359363,0.002,26044.0,26043.0,1.99849]
[1693530359601,0.002,26044.0,26043.0,1.99795]
[1693530359814,0.002,26044.0,26043.0,1.99849]
[1693530360012,0.002,26044.0,26043.0,2.00173]
[1693530360315,0.002,26044.0,26043.0,1.99387]
[1693530360516,0.002,26044.0,26043.0,1.99963]
[1693530360748,0.002,26044.0,26043.0,1.99951]
[1693530360939,0.002,26044.0,26043.0,1.99849]
[1693530361144,0.002,26044.0,26043.0,1.99471]
[1693530361369,0.002,26044.0,26043.0,1.99327]
[1693530361687,0.002,26044.0,26043.0,1.99513]
[1693530361868,0.002,26044.0,26043.0,1.99393]
[1693530362070,0.002,26044.0,26043.0,1.99141]
[1693530362275,0.002,26044.0,26043.0,1.99177]
[1693530362518,0.002,26044.0,26043.0,1.99279]
[1693530362719,0.002,26044.0,26043.0,1.99093]
[1693530362937,0.002,26044.0,26043.0,1.99069]
[1693530363114,0.002,26044.0,26043.0,1.99195]
[1693530363295,0.002,26044.0,26043.0,1.99153]
[1693530363495,0.002,26044.0,26043.0,1.99135]
[1693530363700,0.002,26044.0,26043.0,1.99381]
[1693530363897,0.002,26044.0,26043.0,1.99387]
[1693530364095,0.002,26044.0,26043.0,1.99375]
[1693530364303,0.002,26044.0,26043.0,1.99339]
[1693530364513,0.002,26044.0,26043.0,1.99303]
[1693530364723,0.002,26044.0,26043.0,1.99057]
[1693530364921,0.002,26044.0,26043.0,1.99201]
[1693530365120,0.002,26044.0,26043.0,1.99045]
[1693530365466,0.002,26044.0,26043.0,2.38605678]
[1693530365628,0.002,26044.0,26043.0,2.38719678]
[1693530365834,0.002,26044.0,26043.0,2.38677678]
[1693530366042,0.002,26044.0,26043.0,2.38107678]
[1693530366248,0.002,26044.0,26043.0,2.38071678]
[1693530366472,0.002,26044.0,26043.0,2.38059678]
[1693530366712,0.002,26044.0,26043.0,2.37861678]
[1693530366922,0.002,26044.0,26043.0,2.37843678]
[1693530367126,0.002,26044.0,26043.0,2.37873678]
[1693530367335,0.002,26044.0,26043.0,2.37861678]
[1693530367506,0.002,26044.0,26043.0,2.37855678]
[1693530367752,0.002,26044.0,26043.0,2.37411678]
[1693530367956,0.002,26044.0,26043.0,2.37309678]
[1693530368176,0.002,26044.0,26043.0,2.64595149]
[1693530368392,0.09207071,26048.0,26046.0,0.04]
[1693530368602,0.23017678,26050.0,26046.0,0.04]
[1693530368603,0.23017678,26050.0,26047.0,2.45836271]
[1693530368789,0.09207071,26050.0,26049.0,0.1182]
[1693530369027,0.09207071,26050.0,26049.0,2.421548]
[1693530369231,0.09207071,26050.0,26049.0,2.513468]
[1693530369441,0.23017678,26051.0,26049.0,2.511428]
[1693530369619,0.23017678,26051.0,26050.0,0.1182]
[1693530369863,0.23017678,26051.0,26050.0,1.845645]
[1693530370065,0.23017678,26051.0,26050.0,1.917225]
[1693530370473,0.23017678,26051.0,26050.0,1.917285]
[1693530370676,0.09207071,26051.0,26050.0,1.916985]
[1693530370849,0.09207071,26051.0,26050.0,1.919565]
[1693530371097,0.09207071,26051.0,26050.0,1.922085]
[1693530371282,0.09207071,26051.0,26050.0,1.922025]
[1693530371517,0.09507071,26051.0,26050.0,1.946325]
[1693530371704,0.09507071,26051.0,26050.0,1.944465]
[1693530371930,0.09507071,26051.0,26050.0,1.944405]
[1693530372116,0.09507071,26051.0,26050.0,1.944345]
[1693530372340,0.09507071,26051.0,26050.0,1.944465]
[1693530372536,0.09507071,26051.0,26050.0,1.942665]
[1693530372740,0.09507071,26051.0,26050.0,1.942905]
[1693530372944,0.09507071,26051.0,26050.0,1.942725]
[1693530373350,0.09507071,26051.0,26050.0,1.942665]
[1693530373648,0.003,26051.0,26050.0,1.942485]
[1693530373852,0.003,26051.0,26050.0,1.949805]
[1693530373995,0.003,26051.0,26050.0,1.953105]
[1693530374197,0.003,26051.0,26050.0,1.952925]
[1693530374401,0.003,26051.0,26050.0,1.952805]
[1693530374600,0.003,26051.0,26050.0,1.953045]
[1693530374807,0.003,26051.0,26050.0,1.947945]
[1693530375003,0.003,26051.0,26050.0,1.948545]
[1693530375243,0.003,26051.0,26050.0,1.949325]
[1693530375418,0.003,26051.0,26050.0,1.949265]
[1693530375633,0.003,26051.0,26050.0,1.949145]
[1693530375864,0.003,26051.0,26050.0,1.949205]
[1693530376238,0.003,26051.0,26050.0,1.948545]
[1693530376411,0.003,26051.0,26050.0,1.948485]
[1693530376617,0.003,26051.0,26050.0,1.950045]
[1693530376800,0.003,26051.0,26050.0,1.950465]
[1693530376996,0.003,26051.0,26050.0,1.949385]
[1693530377382,0.003,26051.0,26050.0,1.949505]
[1693530377745,0.003,26051.0,26050.0,1.944825]
[1693530377900,0.003,26051.0,26050.0,1.945185]
[1693530378063,0.003,26051.0,26050.0,1.945845]
[1693530378264,0.003,26051.0,26050.0,1.943205]
[1693530378465,0.003,26051.0,26050.0,1.942065]
[1693530378665,0.003,26051.0,26050.0,1.942605]
[1693530378871,0.003,26051.0,26050.0,1.943385]
[1693530379070,0.003,26051.0,26050.0,1.942965]
[1693530379274,0.003,26051.0,26050.0,1.942365]
[1693530379537,0.003,26051.0,26050.0,1.942125]
[1693530379687,0.003,26051.0,26050.0,1.942305]
[1693530379890,0.003,26051.0,26050.0,1.942845]
[1693530380096,0.003,26051.0,26050.0,1.942305]
[1693530380358,0.003,26051.0,26050.0,1.942365]
[1693530380471,0.003,26051.0,26050.0,1.942425]
[1693530380675,0.003,26051.0,26050.0,1.941405]
[1693530380886,0.003,26051.0,26050.0,1.941585]
[1693530381294,0.003,26051.0,26050.0,1.941525]
[1693530381517,0.003,26051.0,26050.0,1.941585]
[1693530381921,0.003,26051.0,26050.0,1.941645]
[1693530383096,0.003,26051.0,26050.0,1.956045]
[1693530383292,0.003,26051.0,26050.0,1.952745]
[1693530383498,0.003,26051.0,26050.0,1.955265]
[1693530383698,0.003,26051.0,26050.0,1.955325]
[1693530383929,0.003,26051.0,26050.0,1.955265]
[1693530384119,0.003,26051.0,26050.0,1.955625]
[1693530384368,0.003,26051.0,26050.0,1.955505]
[1693530384552,0.003,26051.0,26050.0,1.955085]
[1693530384969,0.003,26051.0,26050.0,1.955145]
[1693530385190,0.003,26051.0,26050.0,1.956045]
[1693530385395,0.003,26051.0,26050.0,1.955025]
[1693530385548,0.003,26051.0,26050.0,1.955265]
[1693530385762,0.003,26051.0,26050.0,1.958205]
[1693530386120,0.003,26051.0,26050.0,1.957845]
[1693530386329,0.003,26051.0,26050.0,1.957965]
[1693530386506,0.003,26051.0,26050.0,1.957905]
[1693530386735,0.003,26051.0,26050.0,1.956165]
[1693530386885,0.003,26051.0,26050.0,1.956405]
[1693530387088,0.003,26051.0,26050.0,1.956525]
[1693530387300,0.003,26051.0,26050.0,1.957545]
[1693530387509,0.003,26051.0,26050.0,1.957485]
[1693530387843,0.003,26051.0,26050.0,1.954905]
[1693530388015,0.003,26051.0,26050.0,1.953765]
[1693530388226,0.003,26051.0,26050.0,1.953165]
[1693530388379,0.003,26051.0,26050.0,1.950825]
[1693530388582,0.003,26051.0,26050.0,1.951785]
[1693530388811,0.003,26051.0,26050.0,1.953405]
[1693530389242,0.003,26051.0,26050.0,1.957125]
[1693530389571,0.003,26051.0,26050.0,1.954305]
[1693530389751,0.003,26051.0,26050.0,1.954185]
[1693530389885,0.003,26051.0,26050.0,1.954125]
[1693530390099,0.003,26051.0,26050.0,1.954065]
[1693530390319,0.003,26051.0,26050.0,1.953945]
[1693530390560,0.003,26051.0,26050.0,1.953525]
[1693530391014,0.003,26051.0,26050.0,1.953465]
[1693530391228,0.003,26051.0,26050.0,1.954305]
[1693530391455,0.003,26051.0,26050.0,1.945985]
[1693530391631,0.003,26051.0,26050.0,1.943945]
[1693530391833,0.003,26051.0,26050.0,1.943825]
[1693530392043,0.003,26051.0,26050.0,1.943705]
[1693530392424,0.003,26051.0,26050.0,1.943525]
[1693530392635,0.003,26051.0,26050.0,1.943645]
[1693530392813,0.003,26051.0,26050.0,1.942325]
[1693530393010,0.003,26051.0,26050.0,1.942385]
[1693530393371,0.003,26051.0,26050.0,1.941905]
[1693530393572,0.003,26051.0,26050.0,1.941485]
[1693530393727,0.003,26051.0,26050.0,1.941425]
[1693530393926,0.003,26051.0,26050.0,1.941665]
[1693530394151,0.003,26051.0,26050.0,1.941125]
[1693530395109,0.003,26051.0,26050.0,1.941185]
[1693530395664,0.003,26051.0,26050.0,1.941905]
[1693530395863,0.003,26051.0,26050.0,1.942565]
[1693530396073,0.003,26051.0,26050.0,1.942385]
[1693530396275,0.003,26051.0,26050.0,1.942145]
[1693530396672,0.003,26051.0,26050.0,1.942085]
[1693530396996,0.003,26051.0,26050.0,1.942205]
[1693530397562,0.003,26051.0,26050.0,1.941965]
[1693530398305,0.003,26051.0,26050.0,1.941905]
[1693530398527,0.003,26051.0,26050.0,1.941965]
[1693530398701,0.003,26051.0,26050.0,1.942865]
[1693530399144,0.003,26051.0,26050.0,1.942805]
[1693530399360,0.003,26051.0,26050.0,1.942745]
[1693530399547,0.003,26051.0,26050.0,1.942505]
[1693530399776,0.09507071,26051.0,26050.0,1.942445]
[1693530399977,0.09507071,26051.0,26050.0,1.942565]
[1693530400384,0.09507071,26051.0,26050.0,1.942625]
[1693530400612,0.09507071,26051.0,26050.0,1.942505]
[1693530400787,0.09507071,26051.0,26050.0,1.942685]
[1693530401015,0.09507071,26051.0,26050.0,1.942385]
[1693530401298,0.09507071,26051.0,26050.0,1.942325]
[1693530401531,0.09507071,26051.0,26050.0,1.942265]
[1693530401739,0.09507071,26051.0,26050.0,1.942385]
[1693530401942,0.09507071,26051.0,26050.0,1.942025]
[1693530402333,0.09507071,26051.0,26050.0,1.941845]
[1693530402538,0.09507071,26051.0,26050.0,1.941365]
[1693530402742,0.09507071,26051.0,26050.0,1.941005]
[1693530402939,0.23317678,26051.0,26050.0,1.941065]
[1693530403142,0.23317678,26051.0,26050.0,1.941425]
[1693530403352,0.23317678,26051.0,26050.0,1.941485]
[1693530403581,0.23317678,26051.0,26050.0,1.941545]
[1693530404012,0.23317678,26051.0,26050.0,1.941485]
[1693530404185,0.23317678,26051.0,26050.0,1.941605]
[1693530404417,0.14110607,26051.0,26050.0,1.940585]
[1693530404622,0.14110607,26051.0,26050.0,1.940525]
[1693530404854,0.14110607,26051.0,26050.0,1.940585]
[1693530405232,0.14110607,26051.0,26050.0,1.940705]
[1693530405445,0.14110607,26051.0,26050.0,1.940345]
[1693530405647,0.14110607,26051.0,26050.0,1.939985]
[1693530405857,0.14110607,26051.0,26050.0,1.939865]
[1693530405993,0.14110607,26051.0,26050.0,1.940105]
[1693530406664,0.14110607,26051.0,26050.0,1.939925]
[1693530406871,0.14110607,26051.0,26050.0,1.939805]
[1693530407225,0.14110607,26051.0,26050.0,1.939865]
[1693530407583,0.14110607,26051.0,26050.0,1.940105]
[1693530407779,0.14110607,26051.0,26050.0,1.939865]
[1693530407941,0.32524749,26051.0,26050.0,1.939865]
[1693530408140,0.14110607,26051.0,26050.0,1.940105]
[1693530408340,0.32524749,26051.0,26050.0,1.939625]
[1693530408542,0.32524749,26051.0,26050.0,1.940105]
[1693530408719,0.32524749,26051.0,26050.0,1.940825]
[1693530408930,0.32524749,26051.0,26050.0,1.931885]
[1693530409148,0.32524749,26051.0,26050.0,1.932545]
[1693530409404,0.32524749,26051.0,26050.0,1.932605]
[1693530409549,0.18714142,26051.0,26050.0,1.932785]
[1693530409971,0.32527517,26051.0,26050.0,1.932845]
[1693530410177,0.18714142,26051.0,26050.0,1.933085]
[1693530410627,0.43264915,26051.0,26050.0,1.933025]
[1693530410833,0.43264915,26051.0,26050.0,1.933085]
[1693530411289,0.43264915,26051.0,26050.0,1.933505]
[1693530411488,0.66282593,26051.0,26050.0,1.933565]
[1693530411808,0.66282593,26051.0,26050.0,1.933805]
[1693530412009,0.66282593,26051.0,26050.0,1.933865]
[1693530412460,0.47868451,26051.0,26050.0,1.933985]
[1693530412873,0.47868451,26051.0,26050.0,1.934045]
[1693530413078,0.47868451,26051.0,26050.0,1.934105]
[1693530413284,0.47868451,26051.0,26050.0,1.933985]
[1693530413582,0.24850773,26051.0,26050.0,1.933925]
[1693530413828,0.24850773,26051.0,26050.0,1.933985]
[1693530414233,0.24850773,26051.0,26050.0,1.934045]
[1693530414684,0.24850773,26051.0,26050.0,1.934225]
[1693530414897,0.24850773,26051.0,26050.0,1.934765]
[1693530415068,0.24850773,26051.0,26050.0,1.934645]
[1693530415276,0.24850773,26051.0,26050.0,1.934705]
[1693530415433,0.24850773,26051.0,26050.0,1.934525]
[1693530415972,0.24850773,26051.0,26050.0,1.933505]
[1693530416171,0.24850773,26051.0,26050.0,1.933625]
[1693530416563,0.24850773,26051.0,26050.0,1.933685]
[1693530416767,0.24850773,26051.0,26050.0,1.933745]
[1693530416968,0.24850773,26051.0,26050.0,1.933805]
[1693530417166,0.24850773,26051.0,26050.0,1.934045]
[1693530417372,0.24850773,26051.0,26050.0,1.934105]
[1693530417572,0.24850773,26051.0,26050.0,1.934225]
[1693530417796,0.24850773,26051.0,26050.0,1.934285]
[1693530417991,0.24850773,26051.0,26050.0,1.934105]
[1693530418191,0.24850773,26051.0,26050.0,1.934045]
[1693530418714,0.24850773,26051.0,26050.0,1.935545]
[1693530418875,0.24850773,26051.0,26050.0,1.935665]
[1693530419073,0.24850773,26051.0,26050.0,1.935845]
[1693530419257,0.24850773,26051.0,26050.0,1.935485]
[1693530419458,0.24850773,26051.0,26050.0,1.935905]
[1693530419919,0.24850773,26051.0,26050.0,1.935965]
[1693530420217,0.24850773,26051.0,26050.0,1.935785]
[1693530420421,0.24850773,26051.0,26050.0,1.935725]
[1693530420620,0.24850773,26051.0,26050.0,1.935365]
[1693530420829,0.24850773,26051.0,26050.0,1.935305]
[1693530421208,0.24850773,26051.0,26050.0,1.935605]
[1693530421426,0.24850773,26051.0,26050.0,1.935545]
[1693530421629,0.24850773,26051.0,26050.0,1.935185]
[1693530421841,0.24850773,26051.0,26050.0,1.935245]
[1693530422008,0.24850773,26051.0,26050.0,1.935305]
[1693530422210,0.24850773,26051.0,26050.0,1.935485]
[1693530422631,0.24850773,26051.0,26050.0,1.935245]
[1693530422827,0.24850773,26051.0,26050.0,1.935305]
[1693530423033,0.24850773,26051.0,26050.0,1.935485]
[1693530423599,0.24850773,26051.0,26050.0,1.935365]
[1693530423782,0.24850773,26051.0,26050.0,1.935485]
[1693530423982,0.24850773,26051.0,26050.0,1.940945]
[1693530424156,0.24850773,26051.0,26050.0,1.942565]
[1693530424362,0.24850773,26051.0,26050.0,1.941905]
[1693530424559,0.24850773,26051.0,26050.0,1.942145]
[1693530424962,0.24850773,26051.0,26050.0,1.942085]
[1693530425183,0.24850773,26051.0,26050.0,1.941965]
[1693530425447,0.24850773,26051.0,26050.0,1.942025]
[1693530425620,0.24850773,26051.0,26050.0,1.942445]
[1693530425818,0.24850773,26051.0,26050.0,1.942085]
[1693530426025,0.24850773,26051.0,26050.0,1.948505]
[1693530426225,0.41798651,26051.0,26050.0,1.976165]
[1693530426433,0.43294428,26051.0,26050.0,1.973225]
[1693530426659,0.43294428,26051.0,26050.0,1.973645]
[1693530426786,0.43294428,26051.0,26050.0,1.975865]
[1693530426787,0.32574267,26051.0,26050.0,1.975865]
[1693530426991,0.32574267,26051.0,26050.0,1.976045]
[1693530427360,0.32574267,26051.0,26050.0,1.978985]
[1693530427508,0.32574267,26051.0,26050.0,1.976945]
[1693530427717,0.32574267,26051.0,26050.0,1.975625]
[1693530427918,0.32574267,26051.0,26050.0,1.968965]
[1693530428113,0.32574267,26051.0,26050.0,1.974125]
[1693530428313,0.32574267,26051.0,26050.0,1.974665]
[1693530428662,0.32574267,26051.0,26050.0,1.977425]
[1693530428906,0.32574267,26051.0,26050.0,1.977665]
[1693530429318,0.32574267,26051.0,26050.0,1.978445]
[1693530429562,0.32574267,26051.0,26050.0,1.978385]
[1693530429762,0.32574267,26051.0,26050.0,1.977785]
[1693530429763,0.14130612,26051.0,26050.0,1.977785]
[1693530429964,0.32574267,26051.0,26050.0,1.979645]
[1693530430301,0.14130612,26051.0,26050.0,2.37333178]
[1693530430509,0.14130612,26051.0,26050.0,2.37129178]
[1693530430709,0.14130612,26051.0,26050.0,2.37069178]
[1693530430911,0.14130612,26051.0,26050.0,2.37159178]
[1693530431116,0.14130612,26051.0,26050.0,2.37153178]
[1693530431117,0.003,26051.0,26050.0,2.37153178]
[1693530431312,0.003,26051.0,26050.0,2.36697178]
[1693530431313,0.14126692,26051.0,26050.0,2.36697178]
[1693530431512,0.14126692,26051.0,26050.0,2.37075178]
[1693530431715,0.14126692,26051.0,26050.0,2.37267178]
[1693530432075,0.32562282,26051.0,26050.0,2.37015178]
[1693530432256,0.32562282,26051.0,26050.0,2.36745178]
[1693530432412,0.32562282,26051.0,26050.0,2.36883178]
[1693530432617,0.32562282,26051.0,26050.0,2.36589178]
[1693530432962,0.14126692,26051.0,26050.0,2.36583178]
[1693530433392,0.14126692,26051.0,26050.0,2.36637178]
[1693530433593,0.14126692,26051.0,26050.0,2.36943178]
[1693530433772,0.14126692,26051.0,26050.0,2.36631178]
[1693530434105,0.67851516,26051.0,26050.0,1.43819]
[1693530434326,1.02386329,26051.0,26050.0,0.024]
[1693530434529,1.30039714,26051.0,26050.0,0.024]
[1693530435340,1.87619014,26051.0,26050.0,0.024]
[1693530435540,2.15849831,26051.0,26050.0,0.024]
[1693530437129,1.02386329,26051.0,26050.0,0.024]
[1693530439406,1.02386329,26051.0,26050.0,0.1422]
[1693530441454,1.02386329,26051.0,26050.0,0.024]
[1693530442412,0.82423108,26051.0,26050.0,0.024]
[1693530442618,0.24843808,26051.0,26050.0,0.024]
[1693530442838,0.24843808,26051.0,26050.0,0.1422]
[1693530447980,0.24843808,26051.0,26050.0,0.024]
[1693530448389,0.49994862,26051.0,26050.0,0.024]